﻿Department,Entity, Transaction Date, Expense Type, Expense Area, Supplier Name,Transaction number, Amount, Invoice Description
FCDO,CSC,30/09/2021,Postage & Courier,Programme Costs,DHL,NOM001082,2395.59,
FCDO,CSC,06/09/2021,Scholar Stipend,Award Costs,Scholar,PIN054381,1299.35,
FCDO,CSC,06/09/2021,Scholar Stipend,Award Costs,Scholar,PIN054382,558,
FCDO,CSC,06/09/2021,Scholar Allowances,Award Costs,Scholar,PIN054382,200,
FCDO,CSC,06/09/2021,Scholar Allowances,Award Costs,Scholar,PIN054383,528.57,
FCDO,CSC,06/09/2021,Scholar Stipend,Award Costs,Scholar,PIN054384,1026.76,
FCDO,CSC,10/09/2021,Tuition Fee,Award Costs,Keele University,PIN054385,14600,
FCDO,CSC,10/09/2021,Tuition Fee,Award Costs,Coventry University,PIN054386,-3073.05,
FCDO,CSC,10/09/2021,Scholar Allowances,Award Costs,Scholar,PIN054389,600,
FCDO,CSC,10/09/2021,Tuition Fee,Award Costs,Coventry University,PIN054390,14046.65,
FCDO,CSC,10/09/2021,Scholar Allowances,Award Costs,Scholar,PIN054392,600,
FCDO,CSC,10/09/2021,Tuition Fee,Award Costs,University of Strathclyde,PIN054393,4200,
FCDO,CSC,10/09/2021,Tuition Fee,Award Costs,University of Strathclyde,PIN054394,4200,
FCDO,CSC,10/09/2021,Tuition Fee,Award Costs,University of Strathclyde,PIN054395,4200,
FCDO,CSC,10/09/2021,Tuition Fee,Award Costs,University of Manchester,PIN054397,7600,
FCDO,CSC,10/09/2021,Scholar Travel,Award Costs,Diversity Travel,PIN054399,767.53,
FCDO,CSC,10/09/2021,Scholar Allowances,Award Costs,Diversity Travel,PIN054399,1795,
FCDO,CSC,10/09/2021,Scholar Allowances,Award Costs,Diversity Travel,PIN054399,1795,
FCDO,CSC,10/09/2021,Scholar Travel,Award Costs,Diversity Travel,PIN054399,721.3,
FCDO,CSC,10/09/2021,Scholar Travel,Award Costs,Diversity Travel,PIN054399,334.06,
FCDO,CSC,10/09/2021,Scholar Allowances,Award Costs,Diversity Travel,PIN054399,1795,
FCDO,CSC,10/09/2021,Scholar Allowances,Award Costs,Diversity Travel,PIN054399,1795,
FCDO,CSC,10/09/2021,Scholar Travel,Award Costs,Diversity Travel,PIN054399,1052.52,
FCDO,CSC,10/09/2021,Scholar Travel,Award Costs,Diversity Travel,PIN054399,650,
FCDO,CSC,10/09/2021,Scholar Travel,Award Costs,Diversity Travel,PIN054399,642.6,
FCDO,CSC,10/09/2021,Scholar Travel,Award Costs,Diversity Travel,PIN054399,629.4,
FCDO,CSC,10/09/2021,Scholar Travel,Award Costs,Diversity Travel,PIN054399,597.72,
FCDO,CSC,10/09/2021,Scholar Travel,Award Costs,Diversity Travel,PIN054399,510.92,
FCDO,CSC,10/09/2021,Scholar Travel,Award Costs,Diversity Travel,PIN054399,503.3,
FCDO,CSC,10/09/2021,Scholar Travel,Award Costs,Diversity Travel,PIN054399,488.44,
FCDO,CSC,10/09/2021,Scholar Travel,Award Costs,Diversity Travel,PIN054399,470.63,
FCDO,CSC,10/09/2021,Scholar Travel,Award Costs,Diversity Travel,PIN054399,162.65,
FCDO,CSC,10/09/2021,Scholar Travel,Award Costs,Diversity Travel,PIN054399,80.24,
FCDO,CSC,10/09/2021,Scholar Travel,Award Costs,Diversity Travel,PIN054399,60.9,
FCDO,CSC,10/09/2021,Scholar Travel,Award Costs,Diversity Travel,PIN054399,50.05,
FCDO,CSC,10/09/2021,Scholar Travel,Award Costs,Diversity Travel,PIN054399,45,
FCDO,CSC,10/09/2021,Scholar Travel,Award Costs,Diversity Travel,PIN054399,30.1,
FCDO,CSC,10/09/2021,Scholar Travel,Award Costs,Diversity Travel,PIN054399,20,
FCDO,CSC,10/09/2021,Scholar Travel,Award Costs,Diversity Travel,PIN054399,-519.89,
FCDO,CSC,10/09/2021,Scholar Travel,Award Costs,Diversity Travel,PIN054399,-1005.64,
FCDO,CSC,10/09/2021,Scholar Travel,Award Costs,Diversity Travel,PIN054399,-2090.04,
FCDO,CSC,10/09/2021,Scholar Travel,Award Costs,Diversity Travel,PIN054400,408.82,
FCDO,CSC,10/09/2021,Scholar Allowances,Award Costs,Diversity Travel,PIN054400,2330,
FCDO,CSC,10/09/2021,Scholar Allowances,Award Costs,Diversity Travel,PIN054400,1795,
FCDO,CSC,10/09/2021,Scholar Travel,Award Costs,Diversity Travel,PIN054400,642.3,
FCDO,CSC,10/09/2021,Scholar Allowances,Award Costs,Diversity Travel,PIN054400,1795,
FCDO,CSC,10/09/2021,Scholar Travel,Award Costs,Diversity Travel,PIN054400,552.96,
FCDO,CSC,10/09/2021,Scholar Allowances,Award Costs,Diversity Travel,PIN054400,1795,
FCDO,CSC,10/09/2021,Scholar Travel,Award Costs,Diversity Travel,PIN054400,495.36,
FCDO,CSC,10/09/2021,Scholar Allowances,Award Costs,Diversity Travel,PIN054400,1795,
FCDO,CSC,10/09/2021,Scholar Travel,Award Costs,Diversity Travel,PIN054400,425.92,
FCDO,CSC,10/09/2021,Scholar Travel,Award Costs,Diversity Travel,PIN054400,1741.83,
FCDO,CSC,10/09/2021,Scholar Travel,Award Costs,Diversity Travel,PIN054400,875.1,
FCDO,CSC,10/09/2021,Fieldwork Airfare,Award Costs,Diversity Travel,PIN054400,691.4,
FCDO,CSC,10/09/2021,Scholar Travel,Award Costs,Diversity Travel,PIN054400,588.88,
FCDO,CSC,10/09/2021,Scholar Travel,Award Costs,Diversity Travel,PIN054400,565.16,
FCDO,CSC,10/09/2021,Scholar Travel,Award Costs,Diversity Travel,PIN054400,498.15,
FCDO,CSC,10/09/2021,Scholar Travel,Award Costs,Diversity Travel,PIN054400,494.88,
FCDO,CSC,10/09/2021,Scholar Travel,Award Costs,Diversity Travel,PIN054400,482.87,
FCDO,CSC,10/09/2021,Scholar Travel,Award Costs,Diversity Travel,PIN054400,459.99,
FCDO,CSC,10/09/2021,Scholar Travel,Award Costs,Diversity Travel,PIN054400,429.1,
FCDO,CSC,10/09/2021,Scholar Travel,Award Costs,Diversity Travel,PIN054400,418.03,
FCDO,CSC,10/09/2021,Scholar Travel,Award Costs,Diversity Travel,PIN054400,63.85,
FCDO,CSC,10/09/2021,Scholar Travel,Award Costs,Diversity Travel,PIN054400,25,
FCDO,CSC,10/09/2021,Scholar Travel,Award Costs,Diversity Travel,PIN054400,10,
FCDO,CSC,10/09/2021,Scholar Travel,Award Costs,Diversity Travel,PIN054400,-351.3,
FCDO,CSC,10/09/2021,Scholar Travel,Award Costs,Diversity Travel,PIN054400,-486.89,
FCDO,CSC,10/09/2021,Engagement,Programme Costs,TFW Printers,PIN054401,1560,
FCDO,CSC,10/09/2021,Interview Costs,Programme Costs,Way With Words Group,PIN054402,1777.06,
FCDO,CSC,10/09/2021,Alumni Engagement,Programme Costs,Way With Words Group,PIN054402,81.25,
FCDO,CSC,10/09/2021,Scholar Stipend,Award Costs,Scholar,PIN054405,1443.42,
FCDO,CSC,10/09/2021,Scholar Allowances,Award Costs,Scholar,PIN054406,358,
FCDO,CSC,10/09/2021,Scholar Allowances,Award Costs,Scholar,PIN054406,240,
FCDO,CSC,10/09/2021,Scholar Stipend,Award Costs,Scholar,PIN054406,1116,
FCDO,CSC,17/09/2021,Scholar Allowances,Award Costs,Scholar,PIN054409,600,
FCDO,CSC,17/09/2021,Tuition Fee,Award Costs,University of Strathclyde,PIN054411,12240,
FCDO,CSC,17/09/2021,Fieldwork Airfare,Award Costs,Scholar,PIN054412,804.91,
FCDO,CSC,17/09/2021,Tuition Fee,Award Costs,University of Strathclyde,PIN054414,17480,
DFE,CSC,17/09/2021,Tuition Fee,Award Costs,University of Exeter,PIN054415,13392,
FCDO,CSC,17/09/2021,Scholar Allowances,Award Costs,University of Exeter,PIN054416,6000,
FCDO,CSC,17/09/2021,Tuition Fee,Award Costs,University of Glasgow,PIN054421,16816,
FCDO,CSC,17/09/2021,Tuition Fee,Award Costs,University of Glasgow,PIN054422,17536,
FCDO,CSC,17/09/2021,Tuition Fee,Award Costs,Sch Oriental & African Studies,PIN054423,15240,
FCDO,CSC,17/09/2021,Tuition Fee,Award Costs,Sch Oriental & African Studies,PIN054423,15240,
FCDO,CSC,17/09/2021,Tuition Fee,Award Costs,Sch Oriental & African Studies,PIN054423,22500,
FCDO,CSC,17/09/2021,Scholar Allowances,Award Costs,Scholar,PIN054424,600,
FCDO,CSC,17/09/2021,Scholar Allowances,Award Costs,Scholar,PIN054425,600,
FCDO,CSC,17/09/2021,Scholar Travel,Award Costs,Liverpool John Moores University,PIN054426,1314.8,
FCDO,CSC,17/09/2021,Scholar Travel,Award Costs,Liverpool John Moores University,PIN054427,555.07,
FCDO,CSC,15/09/2021,Scholar Stipend,Award Costs,Scholar,PIN054428,1116,
FCDO,CSC,15/09/2021,Scholar Allowances,Award Costs,Scholar,PIN054429,433,
FCDO,CSC,15/09/2021,Scholar Stipend,Award Costs,Scholar,PIN054429,706.41,
FCDO,CSC,15/09/2021,Scholar Allowances,Award Costs,Scholar,PIN054430,383.82,
FCDO,CSC,15/09/2021,Scholar Allowances,Award Costs,Scholar,PIN054430,240,
FCDO,CSC,15/09/2021,Scholar Allowances,Award Costs,Scholar,PIN054431,546.32,
FCDO,CSC,15/09/2021,Scholar Allowances,Award Costs,Scholar,PIN054431,366.24,
FCDO,CSC,09/09/2021,Scholar Allowances,Award Costs,Scholar,PIN054432,433,
FCDO,CSC,09/09/2021,Scholar Stipend,Award Costs,Scholar,PIN054432,815.76,
FCDO,CSC,09/09/2021,Bank Charges,Programme Costs,MasterCard Prepaid Management Services Ltd,PIN054432,12.49,
FCDO,CSC,10/09/2021,Scholar Allowances,Award Costs,Scholar,PIN054433,439,
FCDO,CSC,10/09/2021,Scholar Stipend,Award Costs,Scholar,PIN054433,4664.75,
FCDO,CSC,10/09/2021,Bank Charges,Programme Costs,MasterCard Prepaid Management Services Ltd,PIN054433,51.04,
FCDO,CSC,13/09/2021,Scholar Allowances,Award Costs,Scholar,PIN054434,439,
FCDO,CSC,13/09/2021,Scholar Stipend,Award Costs,Scholar,PIN054434,4278.97,
FCDO,CSC,13/09/2021,Scholar Allowances,Award Costs,Scholar,PIN054434,200,
FCDO,CSC,13/09/2021,Bank Charges,Programme Costs,MasterCard Prepaid Management Services Ltd,PIN054434,49.18,
FCDO,CSC,15/09/2021,Scholar Allowances,Award Costs,Scholar,PIN054435,433,
FCDO,CSC,15/09/2021,Scholar Stipend,Award Costs,Scholar,PIN054435,815.76,
FCDO,CSC,15/09/2021,Scholar Allowances,Award Costs,Scholar,PIN054435,439,
FCDO,CSC,15/09/2021,Scholar Stipend,Award Costs,Scholar,PIN054435,4058.98,
FCDO,CSC,15/09/2021,Scholar Allowances,Award Costs,Scholar,PIN054435,439,
FCDO,CSC,15/09/2021,Scholar Stipend,Award Costs,Scholar,PIN054435,4664.75,
FCDO,CSC,15/09/2021,Scholar Allowances,Award Costs,Scholar,PIN054435,439,
FCDO,CSC,15/09/2021,Scholar Stipend,Award Costs,Scholar,PIN054435,3802.32,
FCDO,CSC,15/09/2021,Scholar Allowances,Award Costs,Scholar,PIN054435,439,
FCDO,CSC,15/09/2021,Scholar Stipend,Award Costs,Scholar,PIN054435,4022.31,
FCDO,CSC,15/09/2021,Scholar Allowances,Award Costs,Scholar,PIN054435,433,
FCDO,CSC,15/09/2021,Scholar Stipend,Award Costs,Scholar,PIN054435,436.2,
FCDO,CSC,15/09/2021,Scholar Allowances,Award Costs,Scholar,PIN054435,433,
FCDO,CSC,15/09/2021,Scholar Stipend,Award Costs,Scholar,PIN054435,577.24,
FCDO,CSC,15/09/2021,Bank Charges,Programme Costs,MasterCard Prepaid Management Services Ltd,PIN054435,214.32,
FCDO,CSC,21/09/2021,Scholar Stipend,Award Costs,Scholar,PIN054436,1116,
FCDO,CSC,24/09/2021,Fieldwork Airfare,Award Costs,Scholar,PIN054442,645,
FCDO,CSC,24/09/2021,Reimbursements,Award Costs,Scholar,PIN054442,85,
FCDO,CSC,24/09/2021,Award Support Costs,Award Costs,University of Glasgow,PIN054449,7800,
FCDO,CSC,24/09/2021,Award Support Costs,Award Costs,University of Exeter,PIN054453,6000,
FCDO,CSC,24/09/2021,Tuition Fee,Award Costs,University of Glasgow,PIN054454,-14400,
FCDO,CSC,24/09/2021,Tuition Fee,Award Costs,University of Glasgow,PIN054455,18000,
FCDO,CSC,24/09/2021,Tuition Fee,Award Costs,University of Strathclyde,PIN054456,11320,
FCDO,CSC,24/09/2021,Award Support Costs,Award Costs,University of Cambridge,PIN054457,8000,
FCDO,CSC,24/09/2021,Tuition Fee,Award Costs,The University of Edinburgh,PIN054460,18000,
FCDO,CSC,24/09/2021,Scholar Allowances,Award Costs,Scholar,PIN054462,600,
FCDO,CSC,24/09/2021,Tuition Fee,Award Costs,The University of Edinburgh,PIN054463,16080,
FCDO,CSC,24/09/2021,Scholar Stipend,Award Costs,Scholar,PIN054465,1026.76,
FCDO,CSC,20/09/2021,Scholar Allowances,Award Costs,Scholar,PIN054466,439,
FCDO,CSC,20/09/2021,Scholar Stipend,Award Costs,Scholar,PIN054466,3545.66,
FCDO,CSC,20/09/2021,Scholar Allowances,Award Costs,Scholar,PIN054466,439,
FCDO,CSC,20/09/2021,Scholar Stipend,Award Costs,Scholar,PIN054466,4664.75,
FCDO,CSC,20/09/2021,Scholar Allowances,Award Costs,Scholar,PIN054466,439,
FCDO,CSC,20/09/2021,Scholar Stipend,Award Costs,Scholar,PIN054466,3802.32,
FCDO,CSC,20/09/2021,Bank Charges,Programme Costs,MasterCard Prepaid Management Services Ltd,PIN054466,175.71,
FCDO,CSC,28/09/2021,Scholar Stipend,Award Costs,Scholar,PIN054467,1699.5,
FCDO,CSC,28/09/2021,Scholar Stipend,Award Costs,Scholar,PIN054468,2085,
FCDO,CSC,28/09/2021,Scholar Stipend,Award Costs,Scholar,PIN054469,3399,
FCDO,CSC,28/09/2021,Scholar Stipend,Award Costs,Scholar,PIN054470,4170,
FCDO,CSC,28/09/2021,Scholar Stipend,Award Costs,Scholar,PIN054471,3399,
FCDO,CSC,28/09/2021,Scholar Stipend,Award Costs,Scholar,PIN054472,4170,
FCDO,CSC,28/09/2021,Scholar Stipend,Award Costs,Scholar,PIN054473,1207.45,
FCDO,CSC,28/09/2021,Scholar Stipend,Award Costs,Scholar,PIN054474,3399,
FCDO,CSC,28/09/2021,Scholar Stipend,Award Costs,Scholar,PIN054475,1699.5,
FCDO,CSC,28/09/2021,Scholar Stipend,Award Costs,Scholar,PIN054476,4170,
FCDO,CSC,28/09/2021,Scholar Stipend,Award Costs,Scholar,PIN054477,4170,
FCDO,CSC,28/09/2021,Scholar Stipend,Award Costs,Scholar,PIN054478,3399,
FCDO,CSC,28/09/2021,Scholar Stipend,Award Costs,Scholar,PIN054479,2085,
FCDO,CSC,28/09/2021,Scholar Stipend,Award Costs,Scholar,PIN054480,763.5,
FCDO,CSC,28/09/2021,Scholar Stipend,Award Costs,Scholar,PIN054481,3399,
FCDO,CSC,28/09/2021,Scholar Stipend,Award Costs,Scholar,PIN054482,3399,
FCDO,CSC,28/09/2021,Scholar Stipend,Award Costs,Scholar,PIN054483,3399,
FCDO,CSC,28/09/2021,Scholar Stipend,Award Costs,Scholar,PIN054484,4170,
FCDO,CSC,28/09/2021,Scholar Stipend,Award Costs,Scholar,PIN054485,4170,
FCDO,CSC,28/09/2021,Scholar Stipend,Award Costs,Scholar,PIN054486,3399,
FCDO,CSC,28/09/2021,Scholar Stipend,Award Costs,Scholar,PIN054487,4170,
FCDO,CSC,28/09/2021,Scholar Stipend,Award Costs,Scholar,PIN054488,2175.27,
FCDO,CSC,28/09/2021,Scholar Stipend,Award Costs,Scholar,PIN054489,3399,
FCDO,CSC,28/09/2021,Scholar Stipend,Award Costs,Scholar,PIN054490,3399,
FCDO,CSC,28/09/2021,Scholar Stipend,Award Costs,Scholar,PIN054491,3399,
FCDO,CSC,28/09/2021,Scholar Stipend,Award Costs,Scholar,PIN054493,3399,
FCDO,CSC,28/09/2021,Scholar Stipend,Award Costs,Scholar,PIN054494,4170,
FCDO,CSC,28/09/2021,Scholar Stipend,Award Costs,Scholar,PIN054495,3399,
FCDO,CSC,28/09/2021,Scholar Stipend,Award Costs,Scholar,PIN054496,3399,
FCDO,CSC,28/09/2021,Scholar Stipend,Award Costs,Scholar,PIN054497,3399,
FCDO,CSC,28/09/2021,Scholar Stipend,Award Costs,Scholar,PIN054498,3399,
FCDO,CSC,28/09/2021,Scholar Stipend,Award Costs,Scholar,PIN054499,3399,
FCDO,CSC,28/09/2021,Scholar Stipend,Award Costs,Scholar,PIN054500,1430.79,
FCDO,CSC,28/09/2021,Scholar Stipend,Award Costs,Scholar,PIN054501,4170,
FCDO,CSC,28/09/2021,Scholar Stipend,Award Costs,Scholar,PIN054502,3399,
FCDO,CSC,28/09/2021,Scholar Stipend,Award Costs,Scholar,PIN054503,670.03,
FCDO,CSC,28/09/2021,Scholar Stipend,Award Costs,Scholar,PIN054504,3399,
FCDO,CSC,28/09/2021,Scholar Stipend,Award Costs,Scholar,PIN054505,3399,
FCDO,CSC,28/09/2021,Scholar Stipend,Award Costs,Scholar,PIN054506,3399,
FCDO,CSC,28/09/2021,Scholar Stipend,Award Costs,Scholar,PIN054507,3399,
FCDO,CSC,28/09/2021,Scholar Stipend,Award Costs,Scholar,PIN054508,715.4,
FCDO,CSC,28/09/2021,Scholar Stipend,Award Costs,Scholar,PIN054509,4170,
FCDO,CSC,28/09/2021,Scholar Stipend,Award Costs,Scholar,PIN054510,4170,
FCDO,CSC,28/09/2021,Scholar Stipend,Award Costs,Scholar,PIN054511,4170,
FCDO,CSC,28/09/2021,Scholar Stipend,Award Costs,Scholar,PIN054512,4170,
FCDO,CSC,28/09/2021,Scholar Stipend,Award Costs,Scholar,PIN054513,3399,
FCDO,CSC,28/09/2021,Scholar Stipend,Award Costs,Scholar,PIN054516,3399,
FCDO,CSC,28/09/2021,Scholar Stipend,Award Costs,Scholar,PIN054517,4170,
FCDO,CSC,28/09/2021,Scholar Stipend,Award Costs,Scholar,PIN054519,4170,
FCDO,CSC,28/09/2021,Scholar Stipend,Award Costs,Scholar,PIN054520,4170,
FCDO,CSC,28/09/2021,Scholar Stipend,Award Costs,Scholar,PIN054521,4170,
FCDO,CSC,28/09/2021,Scholar Stipend,Award Costs,Scholar,PIN054522,2085,
FCDO,CSC,28/09/2021,Scholar Stipend,Award Costs,Scholar,PIN054523,3399,
FCDO,CSC,28/09/2021,Scholar Stipend,Award Costs,Scholar,PIN054524,3399,
FCDO,CSC,28/09/2021,Scholar Stipend,Award Costs,Scholar,PIN054525,3399,
FCDO,CSC,28/09/2021,Scholar Stipend,Award Costs,Scholar,PIN054526,3399,
FCDO,CSC,28/09/2021,Scholar Stipend,Award Costs,Scholar,PIN054527,3399,
FCDO,CSC,28/09/2021,Scholar Stipend,Award Costs,Scholar,PIN054528,1699.5,
FCDO,CSC,28/09/2021,Scholar Stipend,Award Costs,Scholar,PIN054529,3399,
FCDO,CSC,28/09/2021,Scholar Stipend,Award Costs,Scholar,PIN054530,3399,
FCDO,CSC,28/09/2021,Scholar Stipend,Award Costs,Scholar,PIN054532,3399,
FCDO,CSC,28/09/2021,Scholar Stipend,Award Costs,Scholar,PIN054533,3399,
FCDO,CSC,28/09/2021,Scholar Stipend,Award Costs,Scholar,PIN054534,3399,
FCDO,CSC,28/09/2021,Scholar Stipend,Award Costs,Scholar,PIN054535,1699.5,
FCDO,CSC,28/09/2021,Scholar Stipend,Award Costs,Scholar,PIN054536,1005.04,
FCDO,CSC,28/09/2021,Scholar Stipend,Award Costs,Scholar,PIN054537,3399,
FCDO,CSC,28/09/2021,Scholar Stipend,Award Costs,Scholar,PIN054538,3399,
FCDO,CSC,28/09/2021,Scholar Stipend,Award Costs,Scholar,PIN054539,3399,
FCDO,CSC,28/09/2021,Scholar Stipend,Award Costs,Scholar,PIN054540,3399,
FCDO,CSC,28/09/2021,Scholar Stipend,Award Costs,Scholar,PIN054541,3399,
FCDO,CSC,28/09/2021,Scholar Stipend,Award Costs,Scholar,PIN054542,566.5,
FCDO,CSC,28/09/2021,Scholar Stipend,Award Costs,Scholar,PIN054544,3399,
FCDO,CSC,28/09/2021,Scholar Stipend,Award Costs,Scholar,PIN054545,1699.5,
FCDO,CSC,28/09/2021,Scholar Stipend,Award Costs,Scholar,PIN054546,3399,
FCDO,CSC,28/09/2021,Scholar Stipend,Award Costs,Scholar,PIN054547,3399,
FCDO,CSC,28/09/2021,Scholar Stipend,Award Costs,Scholar,PIN054548,3399,
FCDO,CSC,28/09/2021,Scholar Stipend,Award Costs,Scholar,PIN054549,3399,
FCDO,CSC,28/09/2021,Scholar Stipend,Award Costs,Scholar,PIN054550,3399,
FCDO,CSC,28/09/2021,Scholar Stipend,Award Costs,Scholar,PIN054551,3399,
FCDO,CSC,28/09/2021,Scholar Stipend,Award Costs,Scholar,PIN054552,4170,
FCDO,CSC,28/09/2021,Scholar Stipend,Award Costs,Scholar,PIN054553,3399,
FCDO,CSC,28/09/2021,Scholar Stipend,Award Costs,Scholar,PIN054554,3399,
FCDO,CSC,28/09/2021,Scholar Stipend,Award Costs,Scholar,PIN054555,3399,
FCDO,CSC,28/09/2021,Scholar Stipend,Award Costs,Scholar,PIN054556,3399,
FCDO,CSC,28/09/2021,Scholar Stipend,Award Costs,Scholar,PIN054557,3399,
FCDO,CSC,28/09/2021,Scholar Stipend,Award Costs,Scholar,PIN054558,1133,
FCDO,CSC,28/09/2021,Scholar Stipend,Award Costs,Scholar,PIN054559,3399,
FCDO,CSC,28/09/2021,Scholar Stipend,Award Costs,Scholar,PIN054560,3399,
FCDO,CSC,28/09/2021,Scholar Stipend,Award Costs,Scholar,PIN054561,3399,
FCDO,CSC,28/09/2021,Scholar Stipend,Award Costs,Scholar,PIN054562,3399,
FCDO,CSC,28/09/2021,Scholar Stipend,Award Costs,Scholar,PIN054563,3399,
FCDO,CSC,28/09/2021,Scholar Stipend,Award Costs,Scholar,PIN054564,3399,
FCDO,CSC,28/09/2021,Scholar Stipend,Award Costs,Scholar,PIN054565,4170,
FCDO,CSC,28/09/2021,Scholar Stipend,Award Costs,Scholar,PIN054566,3399,
FCDO,CSC,28/09/2021,Scholar Stipend,Award Costs,Scholar,PIN054567,3399,
FCDO,CSC,28/09/2021,Scholar Stipend,Award Costs,Scholar,PIN054569,3399,
FCDO,CSC,28/09/2021,Scholar Stipend,Award Costs,Scholar,PIN054570,2858,
FCDO,CSC,28/09/2021,Scholar Stipend,Award Costs,Scholar,PIN054571,3399,
FCDO,CSC,28/09/2021,Scholar Stipend,Award Costs,Scholar,PIN054572,3399,
FCDO,CSC,28/09/2021,Scholar Stipend,Award Costs,Scholar,PIN054573,3399,
FCDO,CSC,28/09/2021,Scholar Stipend,Award Costs,Scholar,PIN054574,3399,
FCDO,CSC,28/09/2021,Scholar Stipend,Award Costs,Scholar,PIN054575,3399,
FCDO,CSC,28/09/2021,Scholar Stipend,Award Costs,Scholar,PIN054576,1133,
FCDO,CSC,28/09/2021,Scholar Stipend,Award Costs,Scholar,PIN054577,3080,
FCDO,CSC,28/09/2021,Scholar Stipend,Award Costs,Scholar,PIN054578,3399,
FCDO,CSC,28/09/2021,Scholar Stipend,Award Costs,Scholar,PIN054579,3399,
FCDO,CSC,28/09/2021,Scholar Stipend,Award Costs,Scholar,PIN054580,3399,
FCDO,CSC,28/09/2021,Scholar Stipend,Award Costs,Scholar,PIN054582,3399,
FCDO,CSC,28/09/2021,Scholar Stipend,Award Costs,Scholar,PIN054583,3399,
FCDO,CSC,28/09/2021,Scholar Stipend,Award Costs,Scholar,PIN054584,3399,
FCDO,CSC,28/09/2021,Scholar Stipend,Award Costs,Scholar,PIN054585,3399,
FCDO,CSC,28/09/2021,Scholar Stipend,Award Costs,Scholar,PIN054586,3399,
FCDO,CSC,28/09/2021,Scholar Stipend,Award Costs,Scholar,PIN054587,3399,
FCDO,CSC,28/09/2021,Scholar Stipend,Award Costs,Scholar,PIN054588,3399,
FCDO,CSC,28/09/2021,Scholar Stipend,Award Costs,Scholar,PIN054589,3399,
FCDO,CSC,28/09/2021,Scholar Stipend,Award Costs,Scholar,PIN054590,3399,
FCDO,CSC,28/09/2021,Scholar Stipend,Award Costs,Scholar,PIN054591,3399,
FCDO,CSC,28/09/2021,Scholar Stipend,Award Costs,Scholar,PIN054592,3399,
FCDO,CSC,28/09/2021,Scholar Stipend,Award Costs,Scholar,PIN054593,3399,
FCDO,CSC,28/09/2021,Scholar Stipend,Award Costs,Scholar,PIN054594,2675.46,
FCDO,CSC,28/09/2021,Scholar Stipend,Award Costs,Scholar,PIN054595,2266,
FCDO,CSC,28/09/2021,Scholar Stipend,Award Costs,Scholar,PIN054596,3399,
FCDO,CSC,28/09/2021,Scholar Stipend,Award Costs,Scholar,PIN054597,3399,
FCDO,CSC,28/09/2021,Scholar Stipend,Award Costs,Scholar,PIN054598,3399,
FCDO,CSC,28/09/2021,Scholar Stipend,Award Costs,Scholar,PIN054599,3399,
FCDO,CSC,28/09/2021,Scholar Stipend,Award Costs,Scholar,PIN054600,3399,
FCDO,CSC,28/09/2021,Scholar Stipend,Award Costs,Scholar,PIN054601,3399,
FCDO,CSC,28/09/2021,Scholar Stipend,Award Costs,Scholar,PIN054602,3399,
FCDO,CSC,28/09/2021,Scholar Stipend,Award Costs,Scholar,PIN054603,3399,
FCDO,CSC,28/09/2021,Scholar Stipend,Award Costs,Scholar,PIN054604,1430.79,
FCDO,CSC,28/09/2021,Scholar Stipend,Award Costs,Scholar,PIN054606,3399,
FCDO,CSC,28/09/2021,Scholar Stipend,Award Costs,Scholar,PIN054607,3399,
FCDO,CSC,28/09/2021,Scholar Stipend,Award Costs,Scholar,PIN054608,3399,
FCDO,CSC,28/09/2021,Scholar Stipend,Award Costs,Scholar,PIN054609,3399,
FCDO,CSC,28/09/2021,Scholar Stipend,Award Costs,Scholar,PIN054610,3399,
FCDO,CSC,28/09/2021,Scholar Stipend,Award Costs,Scholar,PIN054611,3399,
FCDO,CSC,28/09/2021,Scholar Stipend,Award Costs,Scholar,PIN054612,3399,
FCDO,CSC,28/09/2021,Scholar Stipend,Award Costs,Scholar,PIN054613,3399,
FCDO,CSC,28/09/2021,Scholar Stipend,Award Costs,Scholar,PIN054614,3399,
FCDO,CSC,28/09/2021,Scholar Stipend,Award Costs,Scholar,PIN054615,3399,
FCDO,CSC,28/09/2021,Scholar Stipend,Award Costs,Scholar,PIN054616,2100.82,
FCDO,CSC,28/09/2021,Scholar Stipend,Award Costs,Scholar,PIN054617,4170,
FCDO,CSC,28/09/2021,Scholar Stipend,Award Costs,Scholar,PIN054618,3399,
FCDO,CSC,28/09/2021,Scholar Stipend,Award Costs,Scholar,PIN054619,3399,
FCDO,CSC,28/09/2021,Scholar Stipend,Award Costs,Scholar,PIN054620,3399,
FCDO,CSC,28/09/2021,Scholar Stipend,Award Costs,Scholar,PIN054621,3399,
FCDO,CSC,28/09/2021,Scholar Stipend,Award Costs,Scholar,PIN054622,3399,
FCDO,CSC,28/09/2021,Scholar Stipend,Award Costs,Scholar,PIN054623,3399,
FCDO,CSC,28/09/2021,Scholar Stipend,Award Costs,Scholar,PIN054624,3399,
FCDO,CSC,28/09/2021,Scholar Stipend,Award Costs,Scholar,PIN054625,1430.79,
FCDO,CSC,28/09/2021,Scholar Stipend,Award Costs,Scholar,PIN054626,3399,
FCDO,CSC,28/09/2021,Scholar Stipend,Award Costs,Scholar,PIN054627,3399,
FCDO,CSC,28/09/2021,Scholar Stipend,Award Costs,Scholar,PIN054628,3399,
FCDO,CSC,28/09/2021,Scholar Stipend,Award Costs,Scholar,PIN054630,3399,
FCDO,CSC,28/09/2021,Scholar Stipend,Award Costs,Scholar,PIN054631,3399,
FCDO,CSC,28/09/2021,Scholar Stipend,Award Costs,Scholar,PIN054634,3399,
FCDO,CSC,28/09/2021,Scholar Stipend,Award Costs,Scholar,PIN054635,1390,
FCDO,CSC,28/09/2021,Scholar Stipend,Award Costs,Scholar,PIN054636,3399,
FCDO,CSC,28/09/2021,Scholar Stipend,Award Costs,Scholar,PIN054637,3399,
FCDO,CSC,28/09/2021,Scholar Stipend,Award Costs,Scholar,PIN054638,3399,
FCDO,CSC,28/09/2021,Scholar Stipend,Award Costs,Scholar,PIN054639,3399,
FCDO,CSC,28/09/2021,Scholar Stipend,Award Costs,Scholar,PIN054640,3399,
FCDO,CSC,28/09/2021,Scholar Stipend,Award Costs,Scholar,PIN054641,1133,
FCDO,CSC,28/09/2021,Scholar Stipend,Award Costs,Scholar,PIN054642,3399,
FCDO,CSC,28/09/2021,Scholar Stipend,Award Costs,Scholar,PIN054643,2026.37,
FCDO,CSC,28/09/2021,Scholar Stipend,Award Costs,Scholar,PIN054644,3399,
FCDO,CSC,28/09/2021,Scholar Stipend,Award Costs,Scholar,PIN054645,1699.5,
FCDO,CSC,28/09/2021,Scholar Stipend,Award Costs,Scholar,PIN054647,3399,
FCDO,CSC,28/09/2021,Scholar Stipend,Award Costs,Scholar,PIN054648,3399,
FCDO,CSC,28/09/2021,Scholar Stipend,Award Costs,Scholar,PIN054649,3399,
FCDO,CSC,28/09/2021,Scholar Stipend,Award Costs,Scholar,PIN054650,3399,
FCDO,CSC,28/09/2021,Scholar Stipend,Award Costs,Scholar,PIN054652,1699.5,
FCDO,CSC,28/09/2021,Scholar Stipend,Award Costs,Scholar,PIN054653,3399,
FCDO,CSC,28/09/2021,Scholar Stipend,Award Costs,Scholar,PIN054654,3399,
FCDO,CSC,28/09/2021,Scholar Stipend,Award Costs,Scholar,PIN054655,3399,
FCDO,CSC,28/09/2021,Scholar Stipend,Award Costs,Scholar,PIN054656,3399,
FCDO,CSC,28/09/2021,Scholar Stipend,Award Costs,Scholar,PIN054657,3399,
FCDO,CSC,28/09/2021,Scholar Stipend,Award Costs,Scholar,PIN054658,3399,
FCDO,CSC,28/09/2021,Scholar Stipend,Award Costs,Scholar,PIN054659,3399,
FCDO,CSC,28/09/2021,Scholar Stipend,Award Costs,Scholar,PIN054660,3399,
FCDO,CSC,28/09/2021,Scholar Stipend,Award Costs,Scholar,PIN054661,3399,
FCDO,CSC,28/09/2021,Scholar Stipend,Award Costs,Scholar,PIN054662,3399,
FCDO,CSC,28/09/2021,Scholar Stipend,Award Costs,Scholar,PIN054663,566.5,
FCDO,CSC,28/09/2021,Scholar Stipend,Award Costs,Scholar,PIN054664,3399,
FCDO,CSC,28/09/2021,Scholar Stipend,Award Costs,Scholar,PIN054666,3399,
FCDO,CSC,28/09/2021,Scholar Stipend,Award Costs,Scholar,PIN054667,3399,
FCDO,CSC,28/09/2021,Scholar Stipend,Award Costs,Scholar,PIN054668,4170,
FCDO,CSC,28/09/2021,Scholar Stipend,Award Costs,Scholar,PIN054669,3399,
FCDO,CSC,28/09/2021,Scholar Stipend,Award Costs,Scholar,PIN054670,3399,
FCDO,CSC,28/09/2021,Scholar Stipend,Award Costs,Scholar,PIN054671,3399,
FCDO,CSC,28/09/2021,Scholar Stipend,Award Costs,Scholar,PIN054672,3399,
FCDO,CSC,28/09/2021,Scholar Stipend,Award Costs,Scholar,PIN054673,3399,
FCDO,CSC,28/09/2021,Scholar Stipend,Award Costs,Scholar,PIN054674,3399,
FCDO,CSC,28/09/2021,Scholar Stipend,Award Costs,Scholar,PIN054675,3399,
FCDO,CSC,28/09/2021,Scholar Stipend,Award Costs,Scholar,PIN054676,1699.5,
FCDO,CSC,28/09/2021,Scholar Stipend,Award Costs,Scholar,PIN054677,4170,
FCDO,CSC,28/09/2021,Scholar Stipend,Award Costs,Scholar,PIN054678,3399,
FCDO,CSC,28/09/2021,Scholar Stipend,Award Costs,Scholar,PIN054680,3399,
FCDO,CSC,28/09/2021,Scholar Stipend,Award Costs,Scholar,PIN054681,3399,
FCDO,CSC,28/09/2021,Scholar Stipend,Award Costs,Scholar,PIN054682,3399,
FCDO,CSC,28/09/2021,Scholar Stipend,Award Costs,Scholar,PIN054683,3399,
FCDO,CSC,28/09/2021,Scholar Stipend,Award Costs,Scholar,PIN054685,2266,
FCDO,CSC,28/09/2021,Scholar Stipend,Award Costs,Scholar,PIN054686,3399,
FCDO,CSC,28/09/2021,Scholar Stipend,Award Costs,Scholar,PIN054687,3399,
FCDO,CSC,28/09/2021,Scholar Stipend,Award Costs,Scholar,PIN054688,3399,
FCDO,CSC,28/09/2021,Scholar Stipend,Award Costs,Scholar,PIN054689,2712.69,
FCDO,CSC,28/09/2021,Scholar Stipend,Award Costs,Scholar,PIN054690,3399,
FCDO,CSC,28/09/2021,Scholar Stipend,Award Costs,Scholar,PIN054691,3399,
FCDO,CSC,28/09/2021,Scholar Stipend,Award Costs,Scholar,PIN054692,3399,
FCDO,CSC,28/09/2021,Scholar Stipend,Programme Costs,Scholar,PIN054693,3399,
FCDO,CSC,28/09/2021,Scholar Stipend,Award Costs,Scholar,PIN054694,3399,
FCDO,CSC,28/09/2021,Scholar Stipend,Award Costs,Scholar,PIN054695,3399,
FCDO,CSC,28/09/2021,Scholar Stipend,Award Costs,Scholar,PIN054696,3399,
FCDO,CSC,28/09/2021,Scholar Stipend,Award Costs,Scholar,PIN054697,3399,
FCDO,CSC,28/09/2021,Advances Repayments,Award Costs,Scholar,PIN054698,-2671.98,
FCDO,CSC,28/09/2021,Scholar Allowances,Award Costs,Scholar,PIN054699,732,
FCDO,CSC,28/09/2021,Scholar Allowances,Award Costs,Scholar,PIN054700,1092,
FCDO,CSC,28/09/2021,Scholar Allowances,Award Costs,Scholar,PIN054701,1452,
FCDO,CSC,28/09/2021,Scholar Allowances,Award Costs,Scholar,PIN054702,732,
FCDO,CSC,28/09/2021,Scholar Allowances,Award Costs,Scholar,PIN054703,1092,
FCDO,CSC,28/09/2021,Scholar Allowances,Award Costs,Scholar,PIN054704,732,
FCDO,CSC,28/09/2021,Scholar Allowances,Award Costs,Scholar,PIN054705,1092,
FCDO,CSC,28/09/2021,Scholar Allowances,Award Costs,Scholar,PIN054706,732,
FCDO,CSC,28/09/2021,Scholar Allowances,Award Costs,Scholar,PIN054707,732,
FCDO,CSC,28/09/2021,Scholar Allowances,Award Costs,Scholar,PIN054708,1092,
FCDO,CSC,28/09/2021,Scholar Allowances,Award Costs,Scholar,PIN054709,732,
FCDO,CSC,28/09/2021,Scholar Allowances,Award Costs,Scholar,PIN054710,1455,
FCDO,CSC,28/09/2021,Scholar Allowances,Award Costs,Scholar,PIN054711,732,
FCDO,CSC,28/09/2021,Scholar Allowances,Award Costs,Scholar,PIN054712,732,
FCDO,CSC,28/09/2021,Scholar Allowances,Award Costs,Scholar,PIN054713,1092,
FCDO,CSC,28/09/2021,Scholar Allowances,Award Costs,Scholar,PIN054714,1092,
FCDO,CSC,28/09/2021,Scholar Allowances,Award Costs,Scholar,PIN054715,1452,
FCDO,CSC,28/09/2021,Scholar Allowances,Award Costs,Scholar,PIN054716,1452,
FCDO,CSC,28/09/2021,Scholar Allowances,Award Costs,Scholar,PIN054717,1092,
FCDO,CSC,28/09/2021,Scholar Allowances,Award Costs,Scholar,PIN054718,732,
FCDO,CSC,28/09/2021,Scholar Allowances,Award Costs,Scholar,PIN054719,1092,
FCDO,CSC,28/09/2021,Scholar Allowances,Award Costs,Scholar,PIN054720,1812,
FCDO,CSC,28/09/2021,Scholar Allowances,Award Costs,Scholar,PIN054721,732,
FCDO,CSC,28/09/2021,Scholar Allowances,Award Costs,Scholar,PIN054722,1092,
FCDO,CSC,28/09/2021,Scholar Allowances,Award Costs,Scholar,PIN054723,1452,
FCDO,CSC,28/09/2021,Scholar Allowances,Award Costs,Scholar,PIN054724,732,
FCDO,CSC,28/09/2021,Scholar Allowances,Award Costs,Scholar,PIN054725,859.55,
FCDO,CSC,28/09/2021,Scholar Allowances,Award Costs,Scholar,PIN054726,732,
FCDO,CSC,28/09/2021,Scholar Allowances,Award Costs,Scholar,PIN054727,732,
FCDO,CSC,28/09/2021,Scholar Allowances,Award Costs,Scholar,PIN054728,1455,
FCDO,CSC,28/09/2021,Scholar Allowances,Award Costs,Scholar,PIN054729,1455,
FCDO,CSC,28/09/2021,Scholar Allowances,Award Costs,Scholar,PIN054730,1455,
FCDO,CSC,28/09/2021,Scholar Allowances,Award Costs,Scholar,PIN054731,1092,
FCDO,CSC,28/09/2021,Scholar Allowances,Award Costs,Scholar,PIN054733,1092,
FCDO,CSC,28/09/2021,Scholar Allowances,Award Costs,Scholar,PIN054734,732,
FCDO,CSC,28/09/2021,Scholar Allowances,Award Costs,Scholar,PIN054735,1092,
FCDO,CSC,28/09/2021,Scholar Allowances,Award Costs,Scholar,PIN054736,1092,
FCDO,CSC,28/09/2021,Scholar Allowances,Award Costs,Scholar,PIN054737,1452,
FCDO,CSC,28/09/2021,Scholar Allowances,Award Costs,Scholar,PIN054738,1455,
FCDO,CSC,28/09/2021,Scholar Allowances,Award Costs,Scholar,PIN054739,732,
FCDO,CSC,28/09/2021,Scholar Allowances,Award Costs,Scholar,PIN054740,1092,
FCDO,CSC,28/09/2021,Scholar Allowances,Award Costs,Scholar,PIN054741,1452,
FCDO,CSC,28/09/2021,Scholar Allowances,Award Costs,Scholar,PIN054742,732,
FCDO,CSC,28/09/2021,Scholar Allowances,Award Costs,Scholar,PIN054743,732,
FCDO,CSC,28/09/2021,Scholar Allowances,Award Costs,Scholar,PIN054744,1452,
FCDO,CSC,28/09/2021,Scholar Allowances,Award Costs,Scholar,PIN054745,1092,
FCDO,CSC,28/09/2021,Scholar Allowances,Award Costs,Scholar,PIN054746,1092,
FCDO,CSC,28/09/2021,Scholar Allowances,Award Costs,Scholar,PIN054747,1455,
FCDO,CSC,28/09/2021,Scholar Allowances,Award Costs,Scholar,PIN054748,1092,
FCDO,CSC,28/09/2021,Scholar Allowances,Award Costs,Scholar,PIN054749,732,
FCDO,CSC,28/09/2021,Scholar Allowances,Award Costs,Scholar,PIN054750,732,
FCDO,CSC,28/09/2021,Scholar Allowances,Award Costs,Scholar,PIN054751,732,
FCDO,CSC,28/09/2021,Scholar Allowances,Award Costs,Scholar,PIN054752,732,
FCDO,CSC,28/09/2021,Scholar Allowances,Award Costs,Scholar,PIN054753,732,
FCDO,CSC,28/09/2021,Scholar Allowances,Award Costs,Scholar,PIN054754,732,
FCDO,CSC,28/09/2021,Scholar Allowances,Award Costs,Scholar,PIN054755,732,
FCDO,CSC,28/09/2021,Scholar Allowances,Award Costs,Scholar,PIN054756,732,
FCDO,CSC,28/09/2021,Scholar Allowances,Award Costs,Scholar,PIN054757,1092,
FCDO,CSC,28/09/2021,Scholar Allowances,Award Costs,Scholar,PIN054758,732,
FCDO,CSC,28/09/2021,Scholar Allowances,Award Costs,Scholar,PIN054759,732,
FCDO,CSC,28/09/2021,Scholar Allowances,Award Costs,Scholar,PIN054760,732,
FCDO,CSC,28/09/2021,Scholar Allowances,Award Costs,Scholar,PIN054761,732,
FCDO,CSC,28/09/2021,Scholar Allowances,Award Costs,Scholar,PIN054762,732,
FCDO,CSC,28/09/2021,Scholar Allowances,Award Costs,Scholar,PIN054763,732,
FCDO,CSC,28/09/2021,Scholar Allowances,Award Costs,Scholar,PIN054764,732,
FCDO,CSC,28/09/2021,Scholar Allowances,Award Costs,Scholar,PIN054765,732,
FCDO,CSC,28/09/2021,Scholar Allowances,Award Costs,Scholar,PIN054766,732,
FCDO,CSC,28/09/2021,Scholar Allowances,Award Costs,Scholar,PIN054767,732,
FCDO,CSC,28/09/2021,Scholar Allowances,Award Costs,Scholar,PIN054768,732,
FCDO,CSC,28/09/2021,Scholar Allowances,Award Costs,Scholar,PIN054769,732,
FCDO,CSC,28/09/2021,Scholar Allowances,Award Costs,Scholar,PIN054770,732,
FCDO,CSC,28/09/2021,Scholar Allowances,Award Costs,Scholar,PIN054771,732,
FCDO,CSC,28/09/2021,Scholar Allowances,Award Costs,Scholar,PIN054772,732,
FCDO,CSC,28/09/2021,Scholar Allowances,Award Costs,Scholar,PIN054773,732,
FCDO,CSC,28/09/2021,Scholar Allowances,Award Costs,Scholar,PIN054774,732,
FCDO,CSC,28/09/2021,Scholar Allowances,Award Costs,Scholar,PIN054775,732,
FCDO,CSC,28/09/2021,Scholar Allowances,Award Costs,Scholar,PIN054776,732,
FCDO,CSC,28/09/2021,Scholar Allowances,Award Costs,Scholar,PIN054777,576.18,
FCDO,CSC,28/09/2021,Scholar Allowances,Award Costs,Scholar,PIN054778,732,
FCDO,CSC,28/09/2021,Scholar Allowances,Award Costs,Scholar,PIN054779,732,
FCDO,CSC,28/09/2021,Scholar Allowances,Award Costs,Scholar,PIN054781,732,
FCDO,CSC,28/09/2021,Scholar Allowances,Award Costs,Scholar,PIN054782,732,
FCDO,CSC,28/09/2021,Scholar Allowances,Award Costs,Scholar,PIN054784,732,
FCDO,CSC,28/09/2021,Scholar Allowances,Award Costs,Scholar,PIN054785,732,
FCDO,CSC,28/09/2021,Scholar Allowances,Award Costs,Scholar,PIN054786,732,
FCDO,CSC,28/09/2021,Scholar Allowances,Award Costs,Scholar,PIN054787,732,
FCDO,CSC,28/09/2021,Scholar Allowances,Award Costs,Scholar,PIN054788,732,
FCDO,CSC,28/09/2021,Scholar Allowances,Award Costs,Scholar,PIN054789,732,
FCDO,CSC,28/09/2021,Scholar Allowances,Award Costs,Scholar,PIN054790,732,
FCDO,CSC,28/09/2021,Scholar Allowances,Award Costs,Scholar,PIN054791,732,
FCDO,CSC,28/09/2021,Scholar Allowances,Award Costs,Scholar,PIN054792,732,
FCDO,CSC,28/09/2021,Scholar Allowances,Award Costs,Scholar,PIN054793,732,
FCDO,CSC,28/09/2021,Scholar Allowances,Award Costs,Scholar,PIN054794,732,
FCDO,CSC,28/09/2021,Scholar Allowances,Award Costs,Scholar,PIN054795,732,
FCDO,CSC,28/09/2021,Scholar Allowances,Award Costs,Scholar,PIN054796,732,
FCDO,CSC,28/09/2021,Scholar Allowances,Award Costs,Scholar,PIN054797,732,
FCDO,CSC,28/09/2021,Scholar Allowances,Award Costs,Scholar,PIN054798,732,
FCDO,CSC,28/09/2021,Scholar Allowances,Award Costs,Scholar,PIN054801,1125,
FCDO,CSC,28/09/2021,Scholar Allowances,Award Costs,Scholar,PIN054808,900,
FCDO,CSC,28/09/2021,Scholar Allowances,Award Costs,Scholar,PIN054811,825,
FCDO,CSC,28/09/2021,Scholar Allowances,Award Costs,Scholar,PIN054816,750,
FCDO,CSC,28/09/2021,Scholar Stipend,Award Costs,Scholar,PIN054820,1464,
FCDO,CSC,28/09/2021,Scholar Stipend,Award Costs,Scholar,PIN054821,2928,
FCDO,CSC,28/09/2021,Scholar Stipend,Award Costs,Scholar,PIN054822,976,
FCDO,CSC,28/09/2021,Scholar Stipend,Award Costs,Scholar,PIN054823,2199,
FCDO,CSC,28/09/2021,Scholar Stipend,Award Costs,Scholar,PIN054824,1464,
FCDO,CSC,28/09/2021,Scholar Stipend,Award Costs,Scholar,PIN054825,1464,
FCDO,CSC,28/09/2021,Scholar Stipend,Award Costs,Scholar,PIN054827,2199,
FCDO,CSC,28/09/2021,Scholar Stipend,Award Costs,Scholar,PIN054828,1464,
FCDO,CSC,28/09/2021,Scholar Stipend,Award Costs,Scholar,PIN054829,2928,
FCDO,CSC,27/09/2021,Scholar Allowances,Award Costs,Scholar,PIN054831,200,
FCDO,CSC,27/09/2021,Scholar Stipend,Award Costs,Scholar,PIN054831,764.62,
FCDO,CSC,29/09/2021,Scholar Stipend,Award Costs,Scholar,PIN054846,1081.89,
FCDO,CSC,29/09/2021,Scholar Allowances,Award Costs,Scholar,PIN054847,169.81,
FCDO,CSC,29/09/2021,Scholar Allowances,Award Costs,Scholar,PIN054847,113.84,
FCDO,CSC,29/09/2021,Scholar Stipend,Award Costs,Scholar,PIN054847,529.36,
FCDO,CSC,29/09/2021,Scholar Allowances,Award Costs,Scholar,PIN054849,433,
FCDO,CSC,29/09/2021,Scholar Stipend,Award Costs,Scholar,PIN054849,634.86,
FCDO,CSC,29/09/2021,Scholar Allowances,Award Costs,Scholar,PIN054852,732,
FCDO,CSC,29/09/2021,Scholar Allowances,Award Costs,Scholar,PIN054852,1092,
FCDO,CSC,24/09/2021,Scholar Allowances,Award Costs,Scholar,PIN054854,439,
FCDO,CSC,24/09/2021,Scholar Stipend,Award Costs,Scholar,PIN054854,3271.04,
FCDO,CSC,24/09/2021,Scholar Allowances,Award Costs,Scholar,PIN054854,439,
FCDO,CSC,24/09/2021,Scholar Stipend,Award Costs,Scholar,PIN054854,4664.75,
FCDO,CSC,24/09/2021,Scholar Allowances,Award Costs,Scholar,PIN054854,439,
FCDO,CSC,24/09/2021,Scholar Stipend,Award Costs,Scholar,PIN054854,3399,
FCDO,CSC,24/09/2021,Scholar Allowances,Award Costs,Scholar,PIN054854,439,
FCDO,CSC,24/09/2021,Scholar Stipend,Award Costs,Scholar,PIN054854,3308.27,
FCDO,CSC,24/09/2021,Scholar Allowances,Award Costs,Scholar,PIN054854,439,
FCDO,CSC,24/09/2021,Scholar Stipend,Award Costs,Scholar,PIN054854,4349.91,
FCDO,CSC,24/09/2021,Bank Charges,Programme Costs,MasterCard Prepaid Management Services Ltd,PIN054854,211.88,
FCDO,CSC,28/09/2021,Scholar Allowances,Award Costs,Scholar,PIN054855,439,
FCDO,CSC,28/09/2021,Scholar Stipend,Award Costs,Scholar,PIN054855,3912.31,
FCDO,CSC,28/09/2021,Scholar Allowances,Award Costs,Scholar,PIN054855,439,
FCDO,CSC,28/09/2021,Scholar Stipend,Award Costs,Scholar,PIN054855,4349.91,
FCDO,CSC,28/09/2021,Scholar Allowances,Award Costs,Scholar,PIN054855,439,
FCDO,CSC,28/09/2021,Scholar Stipend,Award Costs,Scholar,PIN054855,3271.04,
FCDO,CSC,28/09/2021,Scholar Allowances,Award Costs,Scholar,PIN054855,439,
FCDO,CSC,28/09/2021,Scholar Stipend,Award Costs,Scholar,PIN054855,3399,
FCDO,CSC,28/09/2021,Scholar Allowances,Award Costs,Scholar,PIN054855,439,
FCDO,CSC,28/09/2021,Scholar Stipend,Award Costs,Scholar,PIN054855,3765.65,
FCDO,CSC,28/09/2021,Scholar Stipend,Award Costs,Scholar,PIN054855,-962.28,
FCDO,CSC,28/09/2021,Bank Charges,Programme Costs,MasterCard Prepaid Management Services Ltd,PIN054855,208.93,
FCDO,CSC,21/09/2021,Scholar Allowances,Award Costs,Scholar,PIN054857,439,
FCDO,CSC,21/09/2021,Scholar Stipend,Award Costs,Scholar,PIN054857,4150.02,
FCDO,CSC,21/09/2021,Scholar Allowances,Award Costs,Scholar,PIN054857,439,
FCDO,CSC,21/09/2021,Scholar Stipend,Award Costs,Scholar,PIN054857,3545.66,
FCDO,CSC,21/09/2021,Scholar Allowances,Award Costs,Scholar,PIN054857,439,
FCDO,CSC,21/09/2021,Scholar Stipend,Award Costs,Scholar,PIN054857,3545.66,
FCDO,CSC,21/09/2021,Scholar Allowances,Award Costs,Scholar,PIN054857,439,
FCDO,CSC,21/09/2021,Scholar Stipend,Award Costs,Scholar,PIN054857,4664.75,
FCDO,CSC,21/09/2021,Scholar Allowances,Award Costs,Scholar,PIN054857,439,
FCDO,CSC,21/09/2021,Scholar Stipend,Award Costs,Scholar,PIN054857,3271.04,
FCDO,CSC,21/09/2021,Scholar Allowances,Award Costs,Scholar,PIN054857,439,
FCDO,CSC,21/09/2021,Scholar Stipend,Award Costs,Scholar,PIN054857,3399,
FCDO,CSC,21/09/2021,Scholar Allowances,Award Costs,Scholar,PIN054857,439,
FCDO,CSC,21/09/2021,Scholar Stipend,Award Costs,Scholar,PIN054857,3985.64,
FCDO,CSC,21/09/2021,Scholar Allowances,Award Costs,Scholar,PIN054857,439,
FCDO,CSC,21/09/2021,Scholar Stipend,Award Costs,Scholar,PIN054857,4349.91,
FCDO,CSC,21/09/2021,Scholar Allowances,Award Costs,Scholar,PIN054857,439,
FCDO,CSC,21/09/2021,Scholar Stipend,Award Costs,Scholar,PIN054857,3948.98,
FCDO,CSC,21/09/2021,Scholar Allowances,Award Costs,Scholar,PIN054857,439,
FCDO,CSC,21/09/2021,Scholar Stipend,Award Costs,Scholar,PIN054857,3308.27,
FCDO,CSC,21/09/2021,Scholar Allowances,Award Costs,Scholar,PIN054857,439,
FCDO,CSC,21/09/2021,Scholar Stipend,Award Costs,Scholar,PIN054857,3875.65,
FCDO,CSC,21/09/2021,Scholar Allowances,Award Costs,Scholar,PIN054857,439,
FCDO,CSC,21/09/2021,Scholar Stipend,Award Costs,Scholar,PIN054857,3802.32,
FCDO,CSC,21/09/2021,Bank Charges,Programme Costs,MasterCard Prepaid Management Services Ltd,PIN054857,511.16,
FCDO,CSC,29/09/2021,Scholar Allowances,Award Costs,Scholar,PIN054874,433,
FCDO,CSC,29/09/2021,Scholar Allowances,Award Costs,Scholar,PIN054874,433,
FCDO,CSC,29/09/2021,Scholar Stipend,Award Costs,Scholar,PIN054874,243.48,
FCDO,CSC,29/09/2021,Scholar Allowances,Award Costs,Scholar,PIN054874,439,
FCDO,CSC,29/09/2021,Scholar Stipend,Award Costs,Scholar,PIN054874,4104.35,
FCDO,CSC,29/09/2021,Scholar Allowances,Award Costs,Scholar,PIN054874,439,
FCDO,CSC,29/09/2021,Scholar Stipend,Award Costs,Scholar,PIN054874,3271.04,
FCDO,CSC,29/09/2021,Scholar Allowances,Award Costs,Scholar,PIN054874,439,
FCDO,CSC,29/09/2021,Scholar Stipend,Award Costs,Scholar,PIN054874,3582.33,
FCDO,CSC,29/09/2021,Scholar Allowances,Award Costs,Scholar,PIN054874,439,
FCDO,CSC,29/09/2021,Scholar Stipend,Award Costs,Scholar,PIN054874,3399,
FCDO,CSC,29/09/2021,Scholar Allowances,Award Costs,Scholar,PIN054874,439,
FCDO,CSC,29/09/2021,Scholar Stipend,Award Costs,Scholar,PIN054874,3271.04,
FCDO,CSC,29/09/2021,Scholar Allowances,Award Costs,Scholar,PIN054874,439,
FCDO,CSC,29/09/2021,Scholar Stipend,Award Costs,Scholar,PIN054874,3271.04,
FCDO,CSC,29/09/2021,Scholar Allowances,Award Costs,Scholar,PIN054874,439,
FCDO,CSC,29/09/2021,Scholar Stipend,Award Costs,Scholar,PIN054874,4394.89,
FCDO,CSC,29/09/2021,Scholar Allowances,Award Costs,Scholar,PIN054874,439,
FCDO,CSC,29/09/2021,Scholar Stipend,Award Costs,Scholar,PIN054874,3399,
FCDO,CSC,29/09/2021,Scholar Allowances,Award Costs,Scholar,PIN054874,439,
FCDO,CSC,29/09/2021,Scholar Stipend,Award Costs,Scholar,PIN054874,3545.66,
FCDO,CSC,29/09/2021,Scholar Allowances,Award Costs,Scholar,PIN054874,439,
FCDO,CSC,29/09/2021,Scholar Stipend,Award Costs,Scholar,PIN054874,3509,
FCDO,CSC,29/09/2021,Scholar Allowances,Award Costs,Scholar,PIN054874,439,
FCDO,CSC,29/09/2021,Scholar Stipend,Award Costs,Scholar,PIN054874,4259.95,
FCDO,CSC,29/09/2021,Scholar Allowances,Award Costs,Scholar,PIN054874,439,
FCDO,CSC,29/09/2021,Scholar Stipend,Award Costs,Scholar,PIN054874,3509,
FCDO,CSC,29/09/2021,Scholar Allowances,Award Costs,Scholar,PIN054874,439,
FCDO,CSC,29/09/2021,Scholar Stipend,Award Costs,Scholar,PIN054874,3692.32,
FCDO,CSC,29/09/2021,Scholar Allowances,Award Costs,Scholar,PIN054874,439,
FCDO,CSC,29/09/2021,Scholar Stipend,Award Costs,Scholar,PIN054874,4619.77,
FCDO,CSC,29/09/2021,Scholar Allowances,Award Costs,Scholar,PIN054874,439,
FCDO,CSC,29/09/2021,Scholar Stipend,Award Costs,Scholar,PIN054874,3271.04,
FCDO,CSC,29/09/2021,Scholar Allowances,Award Costs,Scholar,PIN054874,439,
FCDO,CSC,29/09/2021,Scholar Stipend,Award Costs,Scholar,PIN054874,3545.66,
FCDO,CSC,29/09/2021,Scholar Allowances,Award Costs,Scholar,PIN054874,439,
FCDO,CSC,29/09/2021,Scholar Stipend,Award Costs,Scholar,PIN054874,4574.8,
FCDO,CSC,29/09/2021,Scholar Allowances,Award Costs,Scholar,PIN054874,439,
FCDO,CSC,29/09/2021,Scholar Stipend,Award Costs,Scholar,PIN054874,4529.82,
FCDO,CSC,29/09/2021,Bank Charges,Programme Costs,MasterCard Prepaid Management Services Ltd,PIN054874,767.61,
FCDO,CSC,22/09/2021,Tuition Fee,Award Costs,University of Oxford,PRF000229,-2447,
FCDO,CSC,28/09/2021,Scholar Allowances,Award Costs,Scholar,PRF000230,-750,
FCDO,CSC,30/09/2021,Scholar Stipend,Award Costs,Scholar,PRF000231,-1278.68,
